[Event "Titled Tuesday Blitz March 07 Late 2023"]
[White "Huber, Benedikt"]
[Black "Martinez Ramirez, Lennis"]
[WhiteFideId "12923583"]
[BlackFideId "3509079"]
[WhiteElo "2199"]
[BlackElo "2439"]
[Result "0-1"]
[Round "03"]
[TimeControl "180+2"]
[Date "2023.03.07"]
[WhiteClock "0:00:13"]
[BlackClock "0:01:48"]

1. d4 {[%clk 0:02:40]}  Nf6 {[%clk 0:02:56]} 2. Nc3 {[%clk 0:02:39]}  d5 {[%clk 0:02:55]} 3. Bf4 {[%clk 0:02:40]}  c5 {[%clk 0:02:55]} 4. e4 {[%clk 0:02:40]}  dxe4 {[%clk 0:02:44]} 5. dxc5 {[%clk 0:02:38]}  Qxd1+ {[%clk 0:02:43]} 6. Rxd1 {[%clk 0:02:39]}  a6 {[%clk 0:02:41]} 7. Nge2 {[%clk 0:02:24]}  Bf5 {[%clk 0:02:39]} 8. Ng3 {[%clk 0:02:23]}  Bg6 {[%clk 0:02:35]} 9. Bc4 {[%clk 0:02:14]}  e6 {[%clk 0:02:34]} 10. b4 {[%clk 0:02:13]}  Nc6 {[%clk 0:02:34]} 11. a3 {[%clk 0:02:12]}  h5 {[%clk 0:02:34]} 12. h4 {[%clk 0:02:05]}  Be7 {[%clk 0:02:27]} 13. O-O {[%clk 0:02:04]}  O-O {[%clk 0:02:26]} 14. Rfe1 {[%clk 0:01:57]}  Rfd8 {[%clk 0:02:26]} 15. Rxd8+ {[%clk 0:01:57]}  Rxd8 {[%clk 0:02:26]} 16. Ngxe4 {[%clk 0:01:57]}  Nxe4 {[%clk 0:02:26]} 17. Nxe4 {[%clk 0:01:58]}  Rd4 {[%clk 0:02:25]} 18. Bd3 {[%clk 0:01:56]}  Bxh4 {[%clk 0:02:25]} 19. g3 {[%clk 0:00:51]}  Be7 {[%clk 0:02:23]} 20. Bd6 {[%clk 0:00:49]}  Bxd6 {[%clk 0:02:20]} 21. Nxd6 {[%clk 0:00:50]}  Bxd3 {[%clk 0:02:20]} 22. cxd3 {[%clk 0:00:50]}  Rxd3 {[%clk 0:02:21]} 23. Re3 {[%clk 0:00:46]}  Rxe3 {[%clk 0:02:09]} 24. fxe3 {[%clk 0:00:46]}  Nd8 {[%clk 0:02:09]} 25. Kf2 {[%clk 0:00:34]}  Kf8 {[%clk 0:02:09]} 26. Kf3 {[%clk 0:00:34]}  Ke7 {[%clk 0:02:09]} 27. Kf4 {[%clk 0:00:34]}  f6 {[%clk 0:02:09]} 28. e4 {[%clk 0:00:31]}  g5+ {[%clk 0:02:10]} 29. Ke3 {[%clk 0:00:31]}  Kd7 {[%clk 0:02:08]} 30. Kf3 {[%clk 0:00:31]}  Kc6 {[%clk 0:02:05]} 31. Ne8 {[%clk 0:00:29]}  f5 {[%clk 0:02:01]} 32. exf5 {[%clk 0:00:26]}  exf5 {[%clk 0:02:02]} 33. Ng7 {[%clk 0:00:27]}  Kb5 {[%clk 0:01:54]} 34. Nxf5 {[%clk 0:00:24]}  Ka4 {[%clk 0:01:53]} 35. Nd6 {[%clk 0:00:20]}  Kxa3 {[%clk 0:01:51]} 36. b5 {[%clk 0:00:21]}  axb5 {[%clk 0:01:47]} 37. Nxb5+ {[%clk 0:00:20]}  Kb4 {[%clk 0:01:48]} 38. Nd6 {[%clk 0:00:19]}  Kxc5 {[%clk 0:01:48]} 39. Nxb7+ {[%clk 0:00:19]}  Nxb7 {[%clk 0:01:49]} 40. Ke4 {[%clk 0:00:19]}  Nd6+ {[%clk 0:01:48]} 41. Ke5 {[%clk 0:00:19]}  Kc6 {[%clk 0:01:47]} 42. Kd4 {[%clk 0:00:13]}  Kd7 {[%clk 0:01:47]} 43. Ke5 {[%clk 0:00:14]}  Ke7 {[%clk 0:01:48]} 44. Kd5 {[%clk 0:00:13]} 0-1


[Site "https://www.chess.com"]

[Event "Titled Tuesday Blitz March 07 Late 2023"]
[White "Pfreundt, Jakob"]
[Black "Ansh M Shah"]
[WhiteFideId "12918156"]
[BlackFideId "25033379"]
[WhiteElo "2318"]
[BlackElo "2084"]
[Result "0-1"]
[Round "03"]
[TimeControl "180+2"]
[Date "2023.03.07"]
[WhiteClock "0:00:04"]
[BlackClock "0:00:04"]

1. Nf3 {[%clk 0:03:00]}  Nf6 {[%clk 0:02:59]} 2. g3 {[%clk 0:02:59]}  g6 {[%clk 0:02:59]} 3. Bg2 {[%clk 0:02:57]}  Bg7 {[%clk 0:03:00]} 4. O-O {[%clk 0:02:57]}  O-O {[%clk 0:03:01]} 5. d4 {[%clk 0:02:58]}  d5 {[%clk 0:03:01]} 6. c3 {[%clk 0:02:57]}  b6 {[%clk 0:03:00]} 7. c4 {[%clk 0:02:57]}  Bb7 {[%clk 0:03:01]} 8. Ne5 {[%clk 0:02:57]}  Nbd7 {[%clk 0:03:00]} 9. Nc3 {[%clk 0:02:50]}  e6 {[%clk 0:02:58]} 10. Bf4 {[%clk 0:02:46]}  c5 {[%clk 0:02:39]} 11. cxd5 {[%clk 0:02:33]}  Nxd5 {[%clk 0:02:28]} 12. Nxd5 {[%clk 0:02:29]}  Bxd5 {[%clk 0:02:27]} 13. Bxd5 {[%clk 0:01:57]}  exd5 {[%clk 0:02:23]} 14. Nc6 {[%clk 0:01:56]}  Qe8 {[%clk 0:02:17]} 15. Bd6 {[%clk 0:01:52]}  Qe6 {[%clk 0:01:33]} 16. Bxf8 {[%clk 0:01:42]}  Bxf8 {[%clk 0:01:24]} 17. Ne5 {[%clk 0:01:10]}  Nxe5 {[%clk 0:01:23]} 18. dxe5 {[%clk 0:01:11]}  Qxe5 {[%clk 0:01:23]} 19. e3 {[%clk 0:01:11]}  Bg7 {[%clk 0:01:15]} 20. Rb1 {[%clk 0:01:11]}  Rd8 {[%clk 0:01:13]} 21. Qa4 {[%clk 0:01:06]}  Qe7 {[%clk 0:00:50]} 22. Rfd1 {[%clk 0:01:04]}  d4 {[%clk 0:00:50]} 23. Qc2 {[%clk 0:00:34]}  Re8 {[%clk 0:00:36]} 24. exd4 {[%clk 0:00:31]}  Bxd4 {[%clk 0:00:37]} 25. Rd2 {[%clk 0:00:20]}  Qf6 {[%clk 0:00:31]} 26. Qd3 {[%clk 0:00:19]}  Rd8 {[%clk 0:00:25]} 27. Qe2 {[%clk 0:00:19]}  Kg7 {[%clk 0:00:23]} 28. Rbd1 {[%clk 0:00:17]}  Rd7 {[%clk 0:00:21]} 29. Kg2 {[%clk 0:00:17]}  Re7 {[%clk 0:00:20]} 30. Qf3 {[%clk 0:00:16]}  Qd6 {[%clk 0:00:13]} 31. b4 {[%clk 0:00:10]}  Re6 {[%clk 0:00:13]} 32. bxc5 {[%clk 0:00:11]}  bxc5 {[%clk 0:00:14]} 33. Qb3 {[%clk 0:00:07]}  Rf6 {[%clk 0:00:13]} 34. Re2 {[%clk 0:00:06]}  Qc6+ {[%clk 0:00:12]} 35. Kg1 {[%clk 0:00:06]}  Rf3 {[%clk 0:00:12]} 36. Qc2 {[%clk 0:00:04]}  Qf6 {[%clk 0:00:12]} 37. Rf1 {[%clk 0:00:04]}  h5 {[%clk 0:00:11]} 38. Qe4 {[%clk 0:00:03]}  Rf5 {[%clk 0:00:05]} 39. Kg2 {[%clk 0:00:03]}  Rg5 {[%clk 0:00:04]} 40. Qf3 {[%clk 0:00:03]}  Rf5 {[%clk 0:00:04]} 41. Qe4 {[%clk 0:00:03]}  Re5 {[%clk 0:00:04]} 42. Qd3 {[%clk 0:00:03]}  Rf5 {[%clk 0:00:03]} 43. h4 {[%clk 0:00:03]}  Rd5 {[%clk 0:00:02]} 44. Qe4 {[%clk 0:00:03]}  Rf5 {[%clk 0:00:02]} 45. Qf3 {[%clk 0:00:04]}  Rxf3 {[%clk 0:00:02]} 46. Rd1 {[%clk 0:00:03]}  Rf5 {[%clk 0:00:03]} 47. Rd3 {[%clk 0:00:03]}  Rd5 {[%clk 0:00:03]} 48. Rf3 {[%clk 0:00:03]}  Qc6 {[%clk 0:00:04]} 49. Re4 {[%clk 0:00:04]}  Rd6 {[%clk 0:00:04]} 50. Ref4 {[%clk 0:00:04]}  Rf6 {[%clk 0:00:04]} 0-1


[Site "https://www.chess.com"]

[Event "Titled Tuesday Blitz March 07 Late 2023"]
[White "Cuenca Jimenez, Jose Fernando"]
[Black "Yeritsyan, Hayk"]
[WhiteFideId "2255570"]
[BlackFideId "13307320"]
[WhiteElo "2429"]
[BlackElo "2453"]
[Result "1-0"]
[Round "03"]
[TimeControl "180+2"]
[Date "2023.03.07"]
[WhiteClock "0:00:25"]
[BlackClock "0:00:01"]

1. c4 {[%clk 0:02:58]}  c6 {[%clk 0:02:54]} 2. e4 {[%clk 0:02:56]}  d5 {[%clk 0:02:52]} 3. exd5 {[%clk 0:02:57]}  cxd5 {[%clk 0:02:53]} 4. cxd5 {[%clk 0:02:58]}  Nf6 {[%clk 0:02:52]} 5. Nc3 {[%clk 0:02:58]}  Nxd5 {[%clk 0:02:50]} 6. Nf3 {[%clk 0:02:58]}  Nxc3 {[%clk 0:02:48]} 7. bxc3 {[%clk 0:02:58]}  e6 {[%clk 0:02:46]} 8. d4 {[%clk 0:02:58]}  Be7 {[%clk 0:02:47]} 9. Bd3 {[%clk 0:02:58]}  O-O {[%clk 0:02:47]} 10. Qe2 {[%clk 0:02:56]}  Nd7 {[%clk 0:02:47]} 11. O-O {[%clk 0:02:55]}  Nf6 {[%clk 0:02:47]} 12. Bg5 {[%clk 0:02:52]}  Rb8 {[%clk 0:02:23]} 13. Ne5 {[%clk 0:02:47]}  Nd5 {[%clk 0:02:16]} 14. Bd2 {[%clk 0:02:35]}  Qc7 {[%clk 0:02:06]} 15. c4 {[%clk 0:02:31]}  Nf6 {[%clk 0:02:02]} 16. Bf4 {[%clk 0:02:26]}  Qd8 {[%clk 0:01:05]} 17. Nxf7 {[%clk 0:02:16]}  Rxf7 {[%clk 0:00:58]} 18. Bxb8 {[%clk 0:02:15]}  Qxd4 {[%clk 0:00:58]} 19. Rad1 {[%clk 0:02:09]}  Qh4 {[%clk 0:00:57]} 20. Bg3 {[%clk 0:02:03]}  Qg5 {[%clk 0:00:56]} 21. Qe5 {[%clk 0:02:00]}  Qxe5 {[%clk 0:00:53]} 22. Bxe5 {[%clk 0:02:01]}  Bd7 {[%clk 0:00:54]} 23. Rfe1 {[%clk 0:01:39]}  Bc6 {[%clk 0:00:52]} 24. Bxf6 {[%clk 0:01:37]}  Rxf6 {[%clk 0:00:51]} 25. Be4 {[%clk 0:01:37]}  Bc5 {[%clk 0:00:49]} 26. Rd2 {[%clk 0:01:17]}  Bb4 {[%clk 0:00:36]} 27. Rd8+ {[%clk 0:01:17]}  Kf7 {[%clk 0:00:36]} 28. Rb1 {[%clk 0:01:16]}  Bc5 {[%clk 0:00:33]} 29. Bxc6 {[%clk 0:01:09]}  Bxf2+ {[%clk 0:00:18]} 30. Kh1 {[%clk 0:01:08]}  bxc6 {[%clk 0:00:17]} 31. Rd7+ {[%clk 0:01:05]}  Kg6 {[%clk 0:00:17]} 32. Rf1 {[%clk 0:01:01]}  c5 {[%clk 0:00:13]} 33. Rd2 {[%clk 0:01:00]}  Bd4 {[%clk 0:00:13]} 34. Rxf6+ {[%clk 0:01:01]}  gxf6 {[%clk 0:00:13]} 35. g3 {[%clk 0:00:57]}  e5 {[%clk 0:00:13]} 36. Kg2 {[%clk 0:00:57]}  e4 {[%clk 0:00:13]} 37. Rd1 {[%clk 0:00:54]}  f5 {[%clk 0:00:13]} 38. Rb1 {[%clk 0:00:54]}  h5 {[%clk 0:00:11]} 39. Rb7 {[%clk 0:00:54]}  h4 {[%clk 0:00:11]} 40. Rxa7 {[%clk 0:00:53]}  hxg3 {[%clk 0:00:11]} 41. hxg3 {[%clk 0:00:53]}  Kg5 {[%clk 0:00:12]} 42. Ra8 {[%clk 0:00:51]}  Kg4 {[%clk 0:00:07]} 43. Rg8+ {[%clk 0:00:50]}  Kh5 {[%clk 0:00:07]} 44. a4 {[%clk 0:00:50]}  Bc3 {[%clk 0:00:07]} 45. Ra8 {[%clk 0:00:42]}  Kg4 {[%clk 0:00:07]} 46. a5 {[%clk 0:00:42]}  e3 {[%clk 0:00:06]} 47. Re8 {[%clk 0:00:39]}  Bxa5 {[%clk 0:00:04]} 48. Rxe3 {[%clk 0:00:39]}  Bb4 {[%clk 0:00:03]} 49. Re8 {[%clk 0:00:38]}  Kg5 {[%clk 0:00:02]} 50. Kf3 {[%clk 0:00:34]}  Bc3 {[%clk 0:00:02]} 51. Re6 {[%clk 0:00:33]}  Bd4 {[%clk 0:00:03]} 52. Rc6 {[%clk 0:00:30]}  Bg1 {[%clk 0:00:01]} 53. Rc7 {[%clk 0:00:27]}  Bd4 {[%clk 0:00:01]} 54. Rc8 {[%clk 0:00:27]}  Kh5 {[%clk 0:00:01]} 55. Rg8 {[%clk 0:00:27]}  Be5 {[%clk 0:00:01]} 56. g4+ {[%clk 0:00:25]} 1-0


[Site "https://www.chess.com"]

[Event "Titled Tuesday Blitz March 07 Late 2023"]
[White "Gonzalez, Francisco Silva"]
[Black "Bujisho, Benjamin"]
[WhiteFideId "1512285"]
[BlackFideId "608610"]
[WhiteElo "2074"]
[BlackElo "2371"]
[Result "0-1"]
[Round "03"]
[TimeControl "180+2"]
[Date "2023.03.07"]
[WhiteClock "0:01:27"]
[BlackClock "0:00:54"]

1. d4 {[%clk 0:02:52]}  d6 {[%clk 0:02:58]} 2. e4 {[%clk 0:02:52]}  g6 {[%clk 0:02:58]} 3. c4 {[%clk 0:02:51]}  Nf6 {[%clk 0:02:57]} 4. Nc3 {[%clk 0:02:50]}  Bg7 {[%clk 0:02:57]} 5. f3 {[%clk 0:02:50]}  O-O {[%clk 0:02:57]} 6. Be3 {[%clk 0:02:49]}  c5 {[%clk 0:02:53]} 7. Nge2 {[%clk 0:02:49]}  Nc6 {[%clk 0:02:53]} 8. d5 {[%clk 0:02:48]}  Ne5 {[%clk 0:02:52]} 9. Ng3 {[%clk 0:02:49]}  a6 {[%clk 0:02:51]} 10. Be2 {[%clk 0:02:48]}  b5 {[%clk 0:02:48]} 11. cxb5 {[%clk 0:02:47]}  axb5 {[%clk 0:02:49]} 12. Nxb5 {[%clk 0:02:48]}  Ba6 {[%clk 0:02:47]} 13. O-O {[%clk 0:02:47]}  c4 {[%clk 0:02:45]} 14. Na3 {[%clk 0:02:43]}  Nfd7 {[%clk 0:02:38]} 15. Qc2 {[%clk 0:02:41]}  Rc8 {[%clk 0:02:32]} 16. Qa4 {[%clk 0:02:33]}  Ra8 {[%clk 0:02:23]} 17. Qc2 {[%clk 0:02:30]}  Qa5 {[%clk 0:02:17]} 18. Nxc4 {[%clk 0:02:30]}  Nxc4 {[%clk 0:02:15]} 19. Bxc4 {[%clk 0:02:30]}  Rfc8 {[%clk 0:02:08]} 20. b3 {[%clk 0:02:27]}  Bxa1 {[%clk 0:02:07]} 21. Rxa1 {[%clk 0:02:27]}  Ne5 {[%clk 0:02:04]} 22. Bh6 {[%clk 0:02:14]}  Bxc4 {[%clk 0:02:01]} 23. bxc4 {[%clk 0:02:10]}  Rxc4 {[%clk 0:02:02]} 24. Qb2 {[%clk 0:02:10]}  Qc5+ {[%clk 0:01:52]} 25. Kh1 {[%clk 0:02:10]}  Rc2 {[%clk 0:01:52]} 26. Qb7 {[%clk 0:02:09]}  Re8 {[%clk 0:01:35]} 27. a4 {[%clk 0:01:59]}  Qf2 {[%clk 0:01:26]} 28. Rg1 {[%clk 0:01:32]}  Nxf3 {[%clk 0:01:25]} 29. Ne2 {[%clk 0:01:32]}  Rxe2 {[%clk 0:01:15]} 30. Be3 {[%clk 0:01:29]}  Rxe3 {[%clk 0:01:06]} 31. Rf1 {[%clk 0:01:27]}  Re1 {[%clk 0:01:00]} 32. Qc8 {[%clk 0:01:27]}  Qg1+ {[%clk 0:00:54]} 0-1


[Site "https://www.chess.com"]

[Event "Titled Tuesday Blitz March 07 Late 2023"]
[White "Skvortsov, Andrei"]
[Black "Koutlas, Nikolaos"]
[WhiteFideId "24108600"]
[BlackFideId "25827138"]
[WhiteElo "2259"]
[BlackElo "2215"]
[Result "1-0"]
[Round "03"]
[TimeControl "180+2"]
[Date "2023.03.07"]
[WhiteClock "0:00:34"]
[BlackClock "0:00:02"]

1. g3 {[%clk 0:02:59]}  h5 {[%clk 0:02:56]} 2. Nf3 {[%clk 0:02:59]}  Nc6 {[%clk 0:02:53]} 3. e4 {[%clk 0:02:58]}  e5 {[%clk 0:02:52]} 4. Bc4 {[%clk 0:02:56]}  Bc5 {[%clk 0:02:51]} 5. d3 {[%clk 0:02:50]}  d6 {[%clk 0:02:20]} 6. Ng5 {[%clk 0:02:41]}  Nh6 {[%clk 0:02:20]} 7. Qxh5 {[%clk 0:02:33]}  Qf6 {[%clk 0:01:24]} 8. Rf1 {[%clk 0:02:21]}  Bxf2+ {[%clk 0:01:17]} 9. Rxf2 {[%clk 0:02:14]}  Qxf2+ {[%clk 0:01:17]} 10. Kxf2 {[%clk 0:02:15]}  Ng4+ {[%clk 0:01:17]} 11. Qxg4 {[%clk 0:02:16]}  Bxg4 {[%clk 0:01:16]} 12. h4 {[%clk 0:02:02]}  Nd4 {[%clk 0:01:01]} 13. Na3 {[%clk 0:01:58]}  f6 {[%clk 0:00:59]} 14. c3 {[%clk 0:01:46]}  fxg5 {[%clk 0:00:40]} 15. cxd4 {[%clk 0:01:46]}  gxh4 {[%clk 0:00:35]} 16. gxh4 {[%clk 0:01:41]}  exd4 {[%clk 0:00:33]} 17. Bg5 {[%clk 0:01:37]}  Kd7 {[%clk 0:00:30]} 18. Kg3 {[%clk 0:01:36]}  Bh5 {[%clk 0:00:25]} 19. Rf1 {[%clk 0:01:36]}  Raf8 {[%clk 0:00:25]} 20. Rf4 {[%clk 0:01:34]}  a6 {[%clk 0:00:22]} 21. Bb3 {[%clk 0:01:30]}  b5 {[%clk 0:00:21]} 22. Nc2 {[%clk 0:01:29]}  c5 {[%clk 0:00:20]} 23. Ne1 {[%clk 0:01:28]}  a5 {[%clk 0:00:16]} 24. Ng2 {[%clk 0:01:27]}  c4 {[%clk 0:00:15]} 25. dxc4 {[%clk 0:01:26]}  a4 {[%clk 0:00:16]} 26. Bc2 {[%clk 0:01:26]}  bxc4 {[%clk 0:00:16]} 27. Bxa4+ {[%clk 0:01:26]}  Kc7 {[%clk 0:00:14]} 28. Be7 {[%clk 0:01:25]}  Rxf4 {[%clk 0:00:13]} 29. Nxf4 {[%clk 0:01:26]}  Bf7 {[%clk 0:00:13]} 30. Bd1 {[%clk 0:01:20]}  Rb8 {[%clk 0:00:12]} 31. b3 {[%clk 0:01:20]}  cxb3 {[%clk 0:00:08]} 32. axb3 {[%clk 0:01:20]}  Bxb3 {[%clk 0:00:07]} 33. Bf3 {[%clk 0:01:18]}  Kd7 {[%clk 0:00:07]} 34. Bg5 {[%clk 0:01:18]}  Bf7 {[%clk 0:00:06]} 35. Bg4+ {[%clk 0:01:17]}  Kc6 {[%clk 0:00:06]} 36. Kf2 {[%clk 0:01:16]}  Rb2+ {[%clk 0:00:05]} 37. Ke1 {[%clk 0:01:16]}  Bc4 {[%clk 0:00:04]} 38. Be2 {[%clk 0:00:52]}  Bxe2 {[%clk 0:00:03]} 39. Nxe2 {[%clk 0:00:53]}  d3 {[%clk 0:00:04]} 40. Nc1 {[%clk 0:00:52]}  d2+ {[%clk 0:00:01]} 41. Bxd2 {[%clk 0:00:51]}  Rb5 {[%clk 0:00:01]} 42. Kf2 {[%clk 0:00:51]}  Rh5 {[%clk 0:00:02]} 43. Bg5 {[%clk 0:00:50]}  Rh8 {[%clk 0:00:03]} 44. Nd3 {[%clk 0:00:50]}  Re8 {[%clk 0:00:04]} 45. Kf3 {[%clk 0:00:50]}  d5 {[%clk 0:00:04]} 46. e5 {[%clk 0:00:48]}  Kb5 {[%clk 0:00:04]} 47. Bf4 {[%clk 0:00:36]}  Kc4 {[%clk 0:00:04]} 48. Nb2+ {[%clk 0:00:37]}  Kc3 {[%clk 0:00:05]} 49. Nd1+ {[%clk 0:00:37]}  Kd3 {[%clk 0:00:05]} 50. Nf2+ {[%clk 0:00:38]}  Kc4 {[%clk 0:00:05]} 51. Ng4 {[%clk 0:00:37]}  d4 {[%clk 0:00:05]} 52. Ke4 {[%clk 0:00:37]}  d3 {[%clk 0:00:05]} 53. Nf2 {[%clk 0:00:37]}  Rd8 {[%clk 0:00:03]} 54. Nd1 {[%clk 0:00:37]}  Rd4+ {[%clk 0:00:03]} 55. Kf3 {[%clk 0:00:38]}  d2 {[%clk 0:00:02]} 56. e6 {[%clk 0:00:34]} 1-0


[Site "https://www.chess.com"]

[Event "Titled Tuesday Blitz March 07 Late 2023"]
[White "Dzida, Kamil"]
[Black "Ashraf, Artin"]
[WhiteFideId "21828652"]
[BlackFideId "22514805"]
[WhiteElo "2139"]
[BlackElo "2188"]
[Result "1-0"]
[Round "03"]
[TimeControl "180+2"]
[Date "2023.03.07"]
[WhiteClock "0:00:07"]
[BlackClock "0:00:03"]

1. e4 {[%clk 0:03:00]}  c5 {[%clk 0:02:59]} 2. Nf3 {[%clk 0:03:00]}  d6 {[%clk 0:02:59]} 3. d4 {[%clk 0:02:58]}  cxd4 {[%clk 0:03:00]} 4. Nxd4 {[%clk 0:02:59]}  Nf6 {[%clk 0:03:01]} 5. Nc3 {[%clk 0:02:59]}  a6 {[%clk 0:03:01]} 6. g3 {[%clk 0:02:51]}  b5 {[%clk 0:02:54]} 7. Bg2 {[%clk 0:02:43]}  Bb7 {[%clk 0:02:54]} 8. O-O {[%clk 0:02:42]}  e6 {[%clk 0:02:53]} 9. Re1 {[%clk 0:02:40]}  Qc8 {[%clk 0:02:48]} 10. Bg5 {[%clk 0:02:29]}  Nbd7 {[%clk 0:02:47]} 11. Nd5 {[%clk 0:02:25]}  Rb8 {[%clk 0:02:18]} 12. a4 {[%clk 0:02:23]}  b4 {[%clk 0:01:57]} 13. c3 {[%clk 0:02:22]}  bxc3 {[%clk 0:01:55]} 14. Rc1 {[%clk 0:02:22]}  exd5 {[%clk 0:01:16]} 15. exd5+ {[%clk 0:02:18]}  Ne5 {[%clk 0:01:16]} 16. Rxc3 {[%clk 0:02:03]}  Qg4 {[%clk 0:01:14]} 17. Qxg4 {[%clk 0:01:01]}  Nxg4 {[%clk 0:01:14]} 18. h3 {[%clk 0:01:00]}  Nxf2 {[%clk 0:00:28]} 19. Kxf2 {[%clk 0:00:55]}  Be7 {[%clk 0:00:29]} 20. Bd2 {[%clk 0:00:30]}  O-O {[%clk 0:00:27]} 21. Nf5 {[%clk 0:00:31]}  Bf6 {[%clk 0:00:23]} 22. Nxd6 {[%clk 0:00:27]}  Ba8 {[%clk 0:00:23]} 23. Ne4 {[%clk 0:00:24]}  Rxb2 {[%clk 0:00:19]} 24. Nxf6+ {[%clk 0:00:20]}  gxf6 {[%clk 0:00:20]} 25. Rd1 {[%clk 0:00:18]}  Rd8 {[%clk 0:00:18]} 26. Kg1 {[%clk 0:00:11]}  Kg7 {[%clk 0:00:07]} 27. Bf4 {[%clk 0:00:11]}  Ng6 {[%clk 0:00:07]} 28. Bc1 {[%clk 0:00:10]}  Ra2 {[%clk 0:00:06]} 29. Rd2 {[%clk 0:00:06]}  Ra1 {[%clk 0:00:04]} 30. Kh2 {[%clk 0:00:06]}  Ne5 {[%clk 0:00:03]} 31. Ba3 {[%clk 0:00:07]}  Rd7 {[%clk 0:00:02]} 32. Bc5 {[%clk 0:00:06]}  Rb1 {[%clk 0:00:02]} 33. d6 {[%clk 0:00:06]}  Bxg2 {[%clk 0:00:02]} 34. Kxg2 {[%clk 0:00:07]}  Rbb7 {[%clk 0:00:01]} 35. a5 {[%clk 0:00:07]}  Ng6 {[%clk 0:00:02]} 36. Bb6 {[%clk 0:00:07]}  Ne5 {[%clk 0:00:03]} 37. Rc7 {[%clk 0:00:07]}  Ng6 {[%clk 0:00:03]} 38. Rxb7 {[%clk 0:00:07]}  Rxb7 {[%clk 0:00:03]} 39. d7 {[%clk 0:00:07]} 1-0


[Site "https://www.chess.com"]

[Event "Titled Tuesday Blitz March 07 Late 2023"]
[White "Haydon, David L"]
[Black "Sreyas Payyappat"]
[WhiteFideId "415405"]
[BlackFideId "46674969"]
[WhiteElo "2326"]
[BlackElo "2083"]
[Result "0-1"]
[Round "03"]
[TimeControl "180+2"]
[Date "2023.03.07"]
[WhiteClock "0:01:09"]
[BlackClock "0:00:16"]

1. e4 {[%clk 0:03:00]}  c6 {[%clk 0:02:58]} 2. d4 {[%clk 0:02:59]}  d5 {[%clk 0:02:59]} 3. Nd2 {[%clk 0:02:59]}  dxe4 {[%clk 0:02:59]} 4. Nxe4 {[%clk 0:02:59]}  Nf6 {[%clk 0:03:00]} 5. Nxf6+ {[%clk 0:02:59]}  exf6 {[%clk 0:03:01]} 6. Nf3 {[%clk 0:02:59]}  Bd6 {[%clk 0:03:02]} 7. c3 {[%clk 0:02:59]}  O-O {[%clk 0:03:03]} 8. Be2 {[%clk 0:02:59]}  Bg4 {[%clk 0:03:01]} 9. O-O {[%clk 0:02:59]}  Nd7 {[%clk 0:03:00]} 10. h3 {[%clk 0:02:58]}  Bh5 {[%clk 0:02:58]} 11. Nh4 {[%clk 0:02:57]}  Bxe2 {[%clk 0:02:56]} 12. Qxe2 {[%clk 0:02:57]}  Re8 {[%clk 0:02:49]} 13. Qd3 {[%clk 0:02:56]}  Nc5 {[%clk 0:02:43]} 14. Qf3 {[%clk 0:02:52]}  Ne4 {[%clk 0:02:35]} 15. Re1 {[%clk 0:02:41]}  Ng5 {[%clk 0:01:40]} 16. Rxe8+ {[%clk 0:02:40]}  Qxe8 {[%clk 0:01:41]} 17. Bxg5 {[%clk 0:02:41]}  fxg5 {[%clk 0:01:41]} 18. Nf5 {[%clk 0:02:41]}  Bf4 {[%clk 0:01:35]} 19. g3 {[%clk 0:02:37]}  Qe6 {[%clk 0:01:33]} 20. Qg4 {[%clk 0:02:30]}  h5 {[%clk 0:00:46]} 21. Qxh5 {[%clk 0:02:25]}  g6 {[%clk 0:00:36]} 22. Nh6+ {[%clk 0:02:08]}  Kg7 {[%clk 0:00:36]} 23. Qg4 {[%clk 0:01:48]}  f5 {[%clk 0:00:30]} 24. Qf3 {[%clk 0:01:42]}  Bd6 {[%clk 0:00:23]} 25. Nxf5+ {[%clk 0:01:26]}  Qxf5 {[%clk 0:00:21]} 26. Qe2 {[%clk 0:01:23]}  Qxh3 {[%clk 0:00:19]} 27. Re1 {[%clk 0:01:12]}  Rh8 {[%clk 0:00:19]} 28. Qe4 {[%clk 0:01:07]}  Qh2+ {[%clk 0:00:18]} 29. Kf1 {[%clk 0:01:07]}  Qh1+ {[%clk 0:00:16]} 30. Qxh1 {[%clk 0:01:06]}  Rxh1+ {[%clk 0:00:17]} 31. Ke2 {[%clk 0:01:06]}  Rxe1+ {[%clk 0:00:18]} 32. Kxe1 {[%clk 0:01:07]}  Kf6 {[%clk 0:00:18]} 33. g4 {[%clk 0:01:07]}  Bf4 {[%clk 0:00:17]} 34. Ke2 {[%clk 0:01:06]}  Ke6 {[%clk 0:00:17]} 35. f3 {[%clk 0:01:06]}  Kd5 {[%clk 0:00:17]} 36. Kd3 {[%clk 0:01:07]}  b5 {[%clk 0:00:17]} 37. b3 {[%clk 0:01:07]}  c5 {[%clk 0:00:18]} 38. c4+ {[%clk 0:01:07]}  bxc4+ {[%clk 0:00:17]} 39. bxc4+ {[%clk 0:01:08]}  Kd6 {[%clk 0:00:17]} 40. Ke4 {[%clk 0:01:06]}  cxd4 {[%clk 0:00:17]} 41. Kxd4 {[%clk 0:01:06]}  Kc6 {[%clk 0:00:17]} 42. a4 {[%clk 0:01:04]}  Bg3 {[%clk 0:00:17]} 43. Kd3 {[%clk 0:01:01]}  Kc5 {[%clk 0:00:18]} 44. Kc3 {[%clk 0:01:01]}  Be5+ {[%clk 0:00:18]} 45. Kd3 {[%clk 0:01:01]}  Kb4 {[%clk 0:00:18]} 46. f4 {[%clk 0:01:01]}  Bxf4 {[%clk 0:00:19]} 47. Ke4 {[%clk 0:01:02]}  Kxc4 {[%clk 0:00:19]} 48. Kf3 {[%clk 0:01:02]}  Kb4 {[%clk 0:00:20]} 49. Kg2 {[%clk 0:01:02]}  Kxa4 {[%clk 0:00:20]} 50. Kf3 {[%clk 0:01:03]}  Kb4 {[%clk 0:00:21]} 51. Kg2 {[%clk 0:01:04]}  a5 {[%clk 0:00:22]} 52. Kh3 {[%clk 0:01:05]}  a4 {[%clk 0:00:23]} 53. Kg2 {[%clk 0:01:06]}  a3 {[%clk 0:00:24]} 54. Kh3 {[%clk 0:01:07]}  a2 {[%clk 0:00:25]} 55. Kg2 {[%clk 0:01:08]}  a1=Q {[%clk 0:00:25]} 56. Kf3 {[%clk 0:01:09]}  Qe1 {[%clk 0:00:16]} 0-1


[Site "https://www.chess.com"]

[Event "Titled Tuesday Blitz March 07 Late 2023"]
[White "Shohat, Yotam"]
[Black "Lewicki, Miroslaw"]
[WhiteFideId "2813955"]
[BlackFideId "1113380"]
[WhiteElo "2226"]
[BlackElo "2212"]
[Result "1-0"]
[Round "03"]
[TimeControl "180+2"]
[Date "2023.03.07"]
[WhiteClock "0:01:03"]
[BlackClock "0:00:18"]

1. e4 {[%clk 0:02:59]}  b6 {[%clk 0:03:00]} 2. d4 {[%clk 0:02:59]}  Bb7 {[%clk 0:03:00]} 3. Bd3 {[%clk 0:02:57]}  Nf6 {[%clk 0:03:00]} 4. f3 {[%clk 0:02:54]}  e6 {[%clk 0:03:00]} 5. c4 {[%clk 0:02:53]}  d5 {[%clk 0:02:53]} 6. cxd5 {[%clk 0:02:52]}  exd5 {[%clk 0:02:53]} 7. e5 {[%clk 0:02:52]}  Nfd7 {[%clk 0:02:53]} 8. f4 {[%clk 0:02:50]}  c5 {[%clk 0:02:52]} 9. Nf3 {[%clk 0:02:50]}  Nc6 {[%clk 0:02:51]} 10. Nc3 {[%clk 0:02:29]}  cxd4 {[%clk 0:02:44]} 11. Ne2 {[%clk 0:02:22]}  Bc5 {[%clk 0:02:40]} 12. a3 {[%clk 0:02:20]}  a5 {[%clk 0:02:39]} 13. O-O {[%clk 0:02:20]}  O-O {[%clk 0:02:28]} 14. Ng3 {[%clk 0:02:11]}  h6 {[%clk 0:02:21]} 15. Nf5 {[%clk 0:01:56]}  Re8 {[%clk 0:02:19]} 16. N3h4 {[%clk 0:01:42]}  Bf8 {[%clk 0:01:42]} 17. Nxh6+ {[%clk 0:01:21]}  gxh6 {[%clk 0:01:12]} 18. Qg4+ {[%clk 0:01:04]}  Kh8 {[%clk 0:01:12]} 19. Qf5 {[%clk 0:01:04]}  Bg7 {[%clk 0:00:18]} 20. Qh7# {[%clk 0:01:03]} 1-0


[Site "https://www.chess.com"]